Cogmind - Beta 13 @@@ ROGUE MODE // 2024.04.12 @ 14:59:13 Player: anthonyiye Result: Destroyed by 9M-IT3(R) with Subdweller Laser Performance ------------- Evolutions (0) 0 Regions Visited (1) 200 Robots Destroyed (10) 50 Value Destroyed (252) 252 Prototype IDs (2) 40 Alien Tech Used (0) 0 Bonus (0) 0 TOTAL SCORE: 542 Bonus ------- None Cogmind --------- Core Integrity 0/250 Matter 300/300 Energy 100/100 System Corruption 0% Temperature Cool (6) Movement Core (50) Location -10/Materials Parts ------- > --- POWER (1) -------- (None) > --- PROPULSION (2) --- (None) > --- UTILITY (2) ------ (None) > --- WEAPON (2) ------- (None) > --- INVENTORY (5) ---- Light Treads Improved Heat Sink Small Storage Unit Structural Scanner Terrain Scanner Peak State ------------ > --- POWER ------------ Ion Engine > --- PROPULSION ------- Light Treads Light Treads > --- UTILITY ---------- Small Storage Unit Medium Storage Unit > --- WEAPON ----------- EM Pulse Gun Assault Rifle > --- INVENTORY -------- Ion Engine Compact Wheel Sensor Array [Rating: 7] Favorites ----------- Power Ion Engine Engine Ion Engine Propulsion Light Treads Treads Light Treads Utility Medium Storage Unit Storage Medium Storage Unit Weapon Assault Rifle Energy Gun EM Pulse Gun Ballistic Gun Assault Rifle Build | -11 -10 ------- Run | Yrd Mat Slots Evolved . | . . Power . | . . Propulsion . | . . Utility . | . . Weapon . | . . Parts Attached 8 | 6 2 Power 1 | 1 . Engine 1 | 1 . Core . | . . Reactor . | . . Propulsion 2 | 2 . Treads 2 | 2 . Leg . | . . Wheel . | . . Hover . | . . Flight . | . . Utility 2 | 1 1 Device . | . . Storage 2 | 1 1 Processor . | . . Hackware . | . . Protection . | . . Artifact . | . . Weapon 3 | 2 1 Energy Gun 2 | 1 1 Energy Cannon . | . . Ballistic Gun 1 | 1 . Ballistic Cannon . | . . Launcher . | . . Special Weapon . | . . Impact Weapon . | . . Slashing Weapon . | . . Piercing Weapon . | . . Special Melee Weapon . | . . Unidentified Prototypes . | . . Parts Lost 6 | . 6 Power 1 | . 1 Propulsion 2 | . 2 Utility . | . . Weapon 3 | . 3 Highest Loss Streak 3 | . 3 To Critical Strikes . | . . Average Slot Usage (%) 67 | . 67 Engine 13 | . 13 Treads 23 | . 23 Storage 13 | . 13 Energy Gun 5 | . 5 Ballistic Gun 11 | . 11 Naked Turns 16 | . 16 Heaviest Build 19 | 14 19 Greatest Support 40 | 40 40 Greatest Overweight (x) 3 | 3 . Average Overweight (x) . | . . Largest Inventory Capacity 10 | 8 10 Average Capacity 9 | 7 9 Most Carried 9 | 2 9 Average Carried 5 | 1 5 Final Capacity 8 | 8 5 Final Carried 5 | 2 5 Class Distribution -------------------- 100% | Mutant Dominant Class ---------------- Mutant | -10/Materials Resources | -11 -10 ----------- Run | Yrd Mat Matter Collected 344 | 194 150 Remotely . | . . Salvage Created 207 | . 207 Parts 19 | . 19 Haulers Intercepted . | . . Recyclers Shooed . | . . Parts Field Recycled . | . . Retrieved Matter . | . . Parts Self-Destructed . | . . Prevented . | . . Kills | -11 -10 ------- Run | Yrd Mat Combat Hostiles Destroyed 7 | . 7 Guns 4 | . 4 AOE 3 | . 3 Classes Destroyed 4 | . 4 Worker 1 | . 1 Watcher 2 | . 2 Swarmer 3 | . 3 Grunt 4 | . 4 Best Kill Streak 7 | . 7 Combat Bots Only 5 | . 5 Max Kills in Single Turn 4 | . 4 Gunslinging . | . . Exploded 2 | . 2 Melee . | . . Uniques/NPCs Destroyed . | . . Combat | -11 -10 -------- Run | Yrd Mat Hostile Shots Fired 64 | . 64 Missed 11 | . 11 Damage Taken 844 | . 844 Core 261 | . 261 Absorbed by Shields . | . . Core Remaining (%) 100 | 100 . Volleys Fired 28 | . 28 Largest 2 | . 2 Hottest 60 | . 60 Shots Fired 37 | . 37 Gun 37 | . 37 Cannon . | . . Launcher . | . . Special . | . . Kinetic 28 | . 28 Thermal . | . . Explosive . | . . Electromagnetic 9 | . 9 Robot Hit Streak 9 | . 9 Robot Miss Streak 3 | . 3 Penetration Max . | . . Secondary Targets . | . . Shots Hit Robots 28 | . 28 Core Hits 14 | . 14 Critical Kills . | . . Critical Parts Destroyed . | . . Critical Strikes . | . . Melee Attacks . | . . Impact . | . . Slashing . | . . Piercing . | . . Sneak Attacks . | . . Combat Hostiles . | . . Follow-up Attacks . | . . Damage Inflicted 806 | . 806 Guns 356 | . 356 Cannons . | . . Explosions 450 | . 450 Melee . | . . Ramming . | . . Kinetic 270 | . 270 Thermal 450 | . 450 Explosive . | . . Electromagnetic 86 | . 86 Impact . | . . Slashing . | . . Piercing . | . . Highest Corruption . | . . Average Corruption . | . . Corruption Purged . | . . Corruption Blocked . | . . Overload Shots . | . . Overflow Damage 51 | . 51 Projectiles . | . . Explosions 51 | . 51 Melee . | . . Knockbacks . | . . Impact . | . . Kinetic . | . . Secondary . | . . Self-Inflicted Damage 98 | . 98 Shots 2 | . 2 Rammed . | . . Targets Rammed . | . . Kicked . | . . Crushed . | . . Highest Temperature 66 | . 66 Average Temperature 33 | . 33 Received Heat Transfer 216 | . 216 Siege Activations . | . . Robots Corrupted . | . . Combat Hostiles . | . . Parts Fried . | . . Impact Corruptions . | . . Robots Melted . | . . Combat Hostiles . | . . Parts Melted 1 | . 1 Heat Transferred 300 | . 300 Parts Sabotaged . | . . Parts Stolen . | . . Parts Stripped . | . . Power Chain Reactions 1 | . 1 Alert | -11 -10 ------- Run | Yrd Mat Peak Influence 215 | . 215 Initial . | . . Average 101 | . 113 Maximum Alert Level 1 | . 1 Low Security (%) 64 | 100 60 Level 1 35 | . 39 Level 2 . | . . Level 3 . | . . Level 4 . | . . Level 5 . | . . High Security . | . . Max Security . | . . Squads Dispatched . | . . Investigation . | . . Extermination . | . . Reinforcement . | . . Assault . | . . Garrison . | . . Intercept . | . . Searches Triggered . | . . Construction Impeded . | . . Haulers Reinforced . | . . Active Scanning Responses . | . . Cargo Convoy Interrupts . | . . Stealth | -11 -10 --------- Run | Yrd Mat Distress Signals . | . . Communications Jammed . | . . Distress Signals . | . . Times Spotted 20 | . 20 Peak Tracking Total 6 | . 6 Tactical Retreats 1 | . 1 Traps | -11 -10 ------- Run | Yrd Mat Traps Triggered . | . . Indirectly . | . . Trap Hack Attempts . | . . Triggered . | . . Disarmed . | . . Reprogrammed . | . . Reused . | . . Traps Extracted . | . . Installed . | . . Triggered . | . . Machines | -11 -10 ---------- Run | Yrd Mat Machines Disabled 4 | . 4 Max in Single Turn 4 | . 4 Machines Repaired . | . . Machines Dismantled . | . . Machines Sabotaged . | . . Overloaded Fab Kills . | . . Hacking | -11 -10 --------- Run | Yrd Mat Machines Accessed 2 | . 2 Terminals 2 | . 2 Fabricators . | . . Repair Stations . | . . Recycling Units . | . . Scanalyzers . | . . Garrison Access . | . . Total Hacks 6 | . 6 Successful 1 | . 1 Failed 5 | . 5 Catastrophic 2 | . 2 Database Lockouts . | . . Manual 4 | . 4 Terminals 6 | . 6 Fabricators . | . . Repair Stations . | . . Recycling Units . | . . Scanalyzers . | . . Garrison Access . | . . Terminal Hacks 1 | . 1 Prototype ID Bank 1 | . 1 Fabricator Hacks . | . . Repair Station Hacks . | . . Recycling Unit Hacks . | . . Scanalyzer . | . . Garrison Access Hacks . | . . Unauthorized Hacks . | . . Terminals . | . . Fabricators . | . . Repair Stations . | . . Recycling Units . | . . Scanalyzers . | . . Garrison Access . | . . Data Cores Recovered . | . . Used . | . . Hacking Detections 2 | . 2 Full Trace Events . | . . Feedback Events . | . . Feedback Blocked . | . . Robot Schematics Acquired . | . . Robots Built . | . . Authchips . | . . Time . | . . Total Robot Build Rating . | . . Part Schematics Acquired . | . . Parts Built . | . . Authchips . | . . Time . | . . Total Part Build Rating . | . . Parts Repaired . | . . Time . | . . Parts Recycled . | . . Recycled Matter . | . . Retrieved Matter . | . . Retrieved Components . | . . Parts Scanalyzed . | . . Part Schematics Acquired . | . . Parts Damaged . | . . Bothacking | -11 -10 ------------ Run | Yrd Mat Used RIF Installer . | . . Robots Hacked . | . . Non-combat . | . . Combat . | . . Robot Hacks Applied . | . . Relay Couplers Released . | . . Fabnet Peak Effective % . | . . Robots Rewired . | . . Allies Hacked . | . . Hacks Repelled . | . . Allies | -11 -10 -------- Run | Yrd Mat Total Allies . | . . Largest Group . | . . Highest-Rated Group . | . . Highest-Rated Ally . | . . Total Orders . | . . Ally Attacks . | . . Total Damage . | . . Kills . | . . Allies Corrupted . | . . Allies Melted . | . . Intel | -11 -10 ------- Run | Yrd Mat Robot Analysis Total . | . . Derelict Logs Recovered . | . . Drone Launches . | . . Drone Recoveries . | . . Exploration | -11 -10 ------------- Run | Yrd Mat Turns Passed 659 | 69 590 Spaces Moved 363 | 38 325 Core 49 | 12 37 Treads 314 | 26 288 Legs . | . . Wheels . | . . Hover . | . . Flight . | . . Fastest Speed 50 | 50 50 Average Speed 148 | 155 147 Slowest Speed 200 | 200 160 Overloaded Moves . | . . Propulsion Burnouts . | . . Robots Hopped . | . . Cave-ins Triggered . | . . Exploration Rate (%) 23 | 3 43 Regions Visited 1 Branch Regions . Pre-discovered Areas . | . . Known Exits Taken . | . . Unknown Exits Taken 1 | 1 . Scrap Searched . | . . Spaces Dug . | . . Terrain Destroyed 23 | . 23 Melee . | . . Projectile . | . . AOE 23 | . 23 Terrain Rammed . | . . Walls Destroyed . | . . Machines Disabled . | . . Actions | -11 -10 --------- Run | Yrd Mat Total 443 | 45 398 Wait 35 | . 35 Move 362 | 37 325 Hop . | . . Pick Up 8 | 2 6 Fast Attach 8 | 6 2 Attach . | . . Detach 1 | . 1 Swap . | . . Drop 1 | . 1 Fire 28 | . 28 Melee . | . . Ram . | . . Kick . | . . Crush . | . . Escape Stasis . | . . Rewire . | . . Trap . | . . Miscellaneous . | . . Route ------- -11/Scrapyard -10/Materials History --------- Turn | Location | Event 33 | -11/Scrapyard | Discovered new exit (range 15) 70 | -11/Scrapyard | Entered Materials 300 | -10/Materials | Build established: Mutant 500 | -10/Materials | Derelicts attacked the area 558 | -10/Materials | Core integrity fell below 50% 645 | -10/Materials | Core integrity fell below 20% 660 | -10/Materials | Destroyed by 9M-IT3(R) with Subdweller Laser Last Messages --------------- K-01 Serf collects debris. O-16 Technician: "IFF HANDSHAKE FAILED. SECURING TERMINAL." K-01 Serf collects debris. ALERT: Derelict incursion detected, rerouting patrols to target area. K-01 Serf collects debris. K-01 Serf cleans the Fusion Modulator. U-05 Engineer lays Concrete. Assault Rifle destroyed. Acquired EM Pulse Gun. Acquired Terrain Scanner. K-01 Serf collects debris. K-01 Serf destroyed. R-06 Scavenger collects Welding Torch. U-05 Engineer destroyed. Ion Engine destroyed. Lgt. Treads destroyed. Dropped Med. Storage Unit. EM Pulse Gun destroyed. Map ----- +----------------------------------------------------+ | ???????? "" #????????? | | ???????? #????????? | | ?????????#######/######+######+### #????????? | | ?????????????? ?????# !! # ### ########### | | ???????????? ???????# !! # #?# # * # | | ???????????#?????????# !! # #?# # # | | ?????????????????????# # #?# !# # | | ?????????????????????# # ### %# # | | ?????????????????????# # + *+% # | | ?????????????????????######## ### *=# ! # | | ????????????????????????????#####?#=%!# # | | ??????????????????????????????#####%! # # | | ???????????######?????############== ###+######? | | ???????????# #?????# %/ #?# #?????? | | ???????????# ####### = ### #?????? | | ???????????# + ^ =!! "## #?????? | | ???????????# ####### ^ * "## #?????? | | ???????????#! #?????# ## #?????? | | ???????????############### ## #?????? | | ?????????????# """ #?## R ## #?????? | | ?????????????# "T" #?## #" #?????? | | ?????????????# #?## [ #" #?????? | | ?????????????# #?## R ## #?????? | | ?????????????# #?## #?????? | | ?????????????# """ #### ######? | | ?????????????# [ """ t @ #? | | ?????????????# """ #### #? | | ?????????????# #??# T# | | ?????????????####/#####?## ##### """ """ ## | | ????????####### ##### # # """ """ #? | | ???? #### """ """ #? | | ??? #??# #? | | ???? #??# #? | | ????########+## ##### #??# """ """ #? | | ??????????????## ##???#######??# """ """ #? | | ???????????????# #?????????????# """ """ #? | | ???????????????# #?????????????# #? | | ???????????????# #?????????????# #? | | ???????????????# #????????????## """ """ #? | | ???????????????# #????????????# """ """ #? | | ???????????????# #????######### """ """ #? | | ???????????????# ?????# # #? | | ???????????????# ?????# # #? | | ???????????????# ?????# # """ """ #? | | ??????????????? ?????# =# """ """ #? | | ????????????????? ??????# = # """ """ #? | | ????????????????????????# *+ #? | | ????????????????????????# # #? | | ????????????????????????# ### ## #? | | ????????????????????????# ## # ###+###? | +----------------------------------------------------+ Best States ------------- Heat Dissipation 25 Energy Generation 10 Energy Capacity 250 Matter Stores 300 Matter Capacity 300 Sight Range 16 Terrain Scan Density 10 Evasion (%) 50 Recoil Reduction 2 Item Schematics ----------------- None Robot Schematics ------------------ None Fabricated ------------ Nothing Alien Tech Used ----------------- None Achievements -------------- None Challenges ------------ None Game ------ Seed PiercingEfficiencySaw Manual? 0 Play Time 00:07:32 Cumulative 12.3 hours Start 2024.04.12 @ 14:53:28 End 2024.04.12 @ 14:59:13 Sessions 1 Manual Loads 0 Difficulty Rogue Special Mode None Game No. 11 Rogue 11 Adventurer 0 Explorer 0 Win Type - Total 0 Types 0/0/0/0/0/0/0/0/0 Lore% 14 Gallery% 16 Achievement% 18 Wizard Run 0 Options --------- Layout 1 ASCII 0 Keyboard 1 Movement Arrows Keybinds 0 Fullscreen 1 Font 32/SmallcapsGlow Map View 50x35 Zoom Use 0% Tactical HUD 0 Map Filters NONE Filters NONE Steam 0 RUN: e6b66692-c09e-430e-9c24-7054968518ed